Cogmind - Beta 10.1 @@@ ROGUE MODE // 2020.10.09 @ 20:00:23 Player: Aprion27 Result: Self-destructed Performance ------------- Evolutions (2) 1000 Regions Visited (4) 800 Robots Destroyed (27) 135 Value Destroyed (609) 609 Prototype IDs (3) 60 Alien Tech Used (0) 0 Bonus (0) 0 TOTAL SCORE: 2604 Bonus ------- None Cogmind --------- Core Integrity 377/550 Matter 300/300 Energy 100/100 System Corruption 0% Temperature Cool (0) Movement Hovering (60) Location -8/Materials Parts ------- > --- POWER (1) -------- (None) > --- PROPULSION (3) --- Improved Hover Unit > --- UTILITY (5) ------ Advanced Targeting Computer Advanced Targeting Computer Advanced Targeting Computer > --- WEAPON (2) ------- (None) > --- INVENTORY (4) ---- Signal Interpreter Mining Laser Peak State ------------ > --- POWER ------------ Light Deuterium Engine > --- PROPULSION ------- Flight Unit Flight Unit Flight Unit > --- UTILITY ---------- Advanced Targeting Computer Advanced Targeting Computer Advanced Targeting Computer > --- WEAPON ----------- Minigun Minigun > --- INVENTORY -------- Advanced Targeting Computer Minigun Minigun Mining Laser [Rating: 22] Favorites ----------- Power Light Ion Engine Engine Light Ion Engine Propulsion Flight Unit Wheel Wheel Hover Unit Hover Unit Flight Unit Flight Unit Utility Advanced Targeting Computer Device Terrain Scanner Processor Advanced Targeting Computer Protection Light Armor Plating Weapon Minigun Energy Gun Small Laser Ballistic Gun Minigun Ballistic Cannon Flak Cannon Special Weapon Mining Laser Special Melee Weapon Datajack Build | -11 -10 -10 -9 -8 ------- Run | Scr Mat Min Mat Mat Slots Evolved 4 | . . . 2 2 Power . | . . . . . Propulsion 1 | . . . 1 . Utility 3 | . . . 1 2 Weapon . | . . . . . Parts Attached 44 | 3 15 . 24 2 Power 6 | 1 3 . 2 . Engine 6 | 1 3 . 2 . Core . | . . . . . Reactor . | . . . . . Propulsion 6 | . 3 . 3 . Treads . | . . . . . Leg . | . . . . . Wheel 1 | . . . 1 . Hover 2 | . 1 . 1 . Flight 3 | . 2 . 1 . Utility 10 | . 2 . 7 1 Device 3 | . 1 . 2 . Storage . | . . . . . Processor 5 | . 1 . 3 1 Hackware . | . . . . . Protection 2 | . . . 2 . Artifact . | . . . . . Weapon 22 | 2 7 . 12 1 Energy Gun 5 | . 1 . 4 . Energy Cannon . | . . . . . Ballistic Gun 12 | 2 4 . 5 1 Ballistic Cannon 3 | . . . 3 . Launcher . | . . . . . Special Weapon 1 | . 1 . . . Impact Weapon . | . . . . . Slashing Weapon . | . . . . . Piercing Weapon . | . . . . . Special Melee Weapon 1 | . 1 . . . Unidentified Prototypes 1 | . . . 1 . Parts Lost 17 | . 5 . 10 2 Power 4 | . 2 . 2 . Propulsion 5 | . 1 . 3 1 Utility 2 | . . . 2 . Weapon 6 | . 2 . 3 1 Highest Loss Streak 4 | . 3 . 4 2 Average Slot Usage (%) 71 | . 62 100 78 52 Engine 10 | . 12 14 8 . Wheel 2 | . . . 3 7 Hover 2 | . 5 . . 9 Flight 13 | . 8 28 17 . Device 6 | . 8 14 5 . Processor 16 | . 8 14 22 27 Energy Gun 1 | . . . 2 . Ballistic Gun 13 | . 15 . 13 9 Ballistic Cannon 1 | . . . 2 . Special Weapon 1 | . 1 14 . . Special Melee Weapon 1 | . 1 14 . . Naked Turns 2 | . 2 . . . Heaviest Build 18 | 6 6 6 18 3 Greatest Support 12 | 3 8 8 12 8 Greatest Overweight (x) 3 | 1 1 . 3 . Average Overweight (x) . | . . . . . Largest Inventory Capacity 4 | 4 4 4 4 4 Average Capacity 4 | 4 4 4 4 4 Most Carried 4 | . 3 3 4 3 Average Carried 2 | . . 3 3 2 Final Capacity 4 | 4 4 4 4 4 Final Carried 4 | . 3 3 4 2 Class Distribution -------------------- 86% | Mutant 13% | Scavenger-Mutant Dominant Class ---------------- Mutant | -10/Materials Mutant | -10/Mines Mutant | -9/Materials Mutant | -8/Materials Resources | -11 -10 -10 -9 -8 ----------- Run | Scr Mat Min Mat Mat Matter Collected 937 | 220 234 20 443 20 Remotely . | . . . . . Salvage Created 787 | . 392 . 375 20 Parts 53 | . 29 . 23 1 Haulers Intercepted 1 | . 1 . . . Recyclers Shooed 1 | . 1 . . . Parts Field Recycled . | . . . . . Retrieved Matter . | . . . . . Parts Self-Destructed . | . . . . . Prevented . | . . . . . Kills | -11 -10 -10 -9 -8 ------- Run | Scr Mat Min Mat Mat Combat Hostiles Destroyed 21 | . 10 . 10 1 Melee 3 | . 2 . . 1 Guns 17 | . 8 . 9 . Cannons 1 | . . . 1 . Classes Destroyed 8 | . 5 . 3 . Tunneler 1 | . . . 1 . Hauler 1 | . 1 . . . Recycler 1 | . 1 . . . Operator 1 | . . . 1 . Watcher 2 | . 1 . 1 . Swarmer 10 | . 6 . 3 1 Grunt 8 | . 4 . 4 . Sentry 3 | . . . 3 . Best Kill Streak 7 | . 7 . 5 1 Combat Bots Only 5 | . 5 . 4 1 Max Kills in Single Turn 1 | . 1 . 1 1 Gunslinging . | . . . . . Exploded . | . . . . . Melee 1 | . 1 . . 1 Uniques/NPCs Destroyed . | . . . . . Combat | -11 -10 -10 -9 -8 -------- Run | Scr Mat Min Mat Mat Damage Taken 1760 | . 507 . 907 346 Core 663 | . 216 . 274 173 Absorbed by Shields . | . . . . . Core Remaining (%) 48 | 100 . 13 31 . Volleys Fired 103 | . 54 . 46 3 Largest 2 | . 2 . 2 1 Hottest 88 | . 40 . 88 25 Shots Fired 150 | . 71 . 76 3 Gun 146 | . 71 . 72 3 Cannon 4 | . . . 4 . Launcher . | . . . . . Special . | . . . . . Kinetic 134 | . 71 . 60 3 Thermal 10 | . . . 10 . Explosive . | . . . . . Electromagnetic 6 | . . . 6 . Robot Hit Streak 15 | . 6 . 15 12 Robot Miss Streak 3 | . 3 . 2 . Penetration Max . | . . . . . Secondary Targets 5 | . 2 . 3 . Max Gunslinging Chain 1 | . 1 . 1 . Shots Hit Robots 107 | . 41 . 63 3 Core Hits 51 | . 27 . 22 2 Critical Hits 1 | . . . 1 . Critical Kills . | . . . . . Critical Parts Destroyed . | . . . . . Melee Attacks . | . . . . . Impact . | . . . . . Slashing . | . . . . . Piercing . | . . . . . Sneak Attacks . | . . . . . Combat Hostiles . | . . . . . Follow-up Attacks . | . . . . . Damage Inflicted 1645 | . 527 . 1052 66 Guns 1491 | . 506 . 932 53 Cannons 120 | . . . 120 . Explosions . | . . . . . Melee . | . . . . . Ramming 34 | . 21 . . 13 Kinetic 1401 | . 506 . 842 53 Thermal 89 | . . . 89 . Explosive . | . . . . . Electromagnetic 121 | . . . 121 . Impact . | . . . . . Slashing . | . . . . . Piercing . | . . . . . Highest Corruption . | . . . . . Average Corruption . | . . . . . Corruption Purged . | . . . . . Overload Shots . | . . . . . Overflow Damage . | . . . . . Projectiles . | . . . . . Explosions . | . . . . . Melee . | . . . . . Knockbacks . | . . . . . Impact . | . . . . . Kinetic . | . . . . . Secondary . | . . . . . Self-Inflicted Damage 11 | . 6 . . 5 Shots . | . . . . . Rammed 16 | . 9 . . 7 Targets Rammed 16 | . 9 . . 7 Kicked . | . . . . . Crushed . | . . . . . Highest Temperature 69 | . 14 . 69 4 Average Temperature 14 | . 4 . 17 4 Received Heat Transfer 501 | . 111 . 327 63 Siege Activations . | . . . . . Robots Corrupted . | . . . . . Combat Hostiles . | . . . . . Parts Fried . | . . . . . Impact Corruptions . | . . . . . Robots Melted . | . . . . . Combat Hostiles . | . . . . . Parts Melted . | . . . . . Heat Transferred 200 | . . . 200 . Parts Sabotaged . | . . . . . Parts Stolen . | . . . . . Parts Stripped . | . . . . . Power Chain Reactions . | . . . . . Missiles Intercepted . | . . . . . Alert | -11 -10 -10 -9 -8 ------- Run | Scr Mat Min Mat Mat Peak Influence 262 | . 174 27 262 75 Initial 34 | . . 27 10 34 Average 95 | . 81 27 122 50 Maximum Alert Level 1 | . . . 1 . Low Security (%) 92 | 100 100 100 85 100 Level 1 7 | . . . 14 . Level 2 . | . . . . . Level 3 . | . . . . . Level 4 . | . . . . . Level 5 . | . . . . . High Security . | . . . . . Max Security . | . . . . . Squads Dispatched 3 | . 2 . . 1 Investigation . | . . . . . Extermination . | . . . . . Reinforcement 3 | . 2 . . 1 Assault . | . . . . . Garrison . | . . . . . Intercept . | . . . . . Construction Impeded . | . . . . . Haulers Reinforced . | . . . . . Stealth | -11 -10 -10 -9 -8 --------- Run | Scr Mat Min Mat Mat Distress Signals 2 | . 1 . 1 . Communications Jammed . | . . . . . Distress Signals . | . . . . . Times Spotted 56 | . 18 2 28 8 Peak Tracking Total 8 | . 5 2 7 8 Tactical Retreats 7 | . . . 7 . Traps | -11 -10 -10 -9 -8 ------- Run | Scr Mat Min Mat Mat Traps Triggered 2 | . 2 . . . Indirectly . | . . . . . Trap Hack Attempts . | . . . . . Triggered . | . . . . . Disarmed . | . . . . . Reprogrammed . | . . . . . Reused . | . . . . . Traps Extracted . | . . . . . Installed . | . . . . . Triggered . | . . . . . Machines | -11 -10 -10 -9 -8 ---------- Run | Scr Mat Min Mat Mat Machines Disabled . | . . . . . Max in Single Turn . | . . . . . Machines Sabotaged . | . . . . . Garrisons Compromised . | . . . . . Overloaded Fab Kills . | . . . . . Fab Network Shutdowns . | . . . . . Hacking | -11 -10 -10 -9 -8 --------- Run | Scr Mat Min Mat Mat Machines Accessed 10 | . 4 . 5 1 Terminals 9 | . 3 . 5 1 Fabricators . | . . . . . Repair Stations . | . . . . . Recycling Units 1 | . 1 . . . Scanalyzers . | . . . . . Garrison Access . | . . . . . Total Hacks 19 | . 8 . 9 2 Successful 10 | . 5 . 4 1 Failed 8 | . 2 . 5 1 Catastrophic 3 | . . . 3 . Database Lockouts 1 | . 1 . . . Manual 13 | . 5 . 6 2 Terminals 18 | . 7 . 9 2 Fabricators . | . . . . . Repair Stations . | . . . . . Recycling Units 1 | . 1 . . . Scanalyzers . | . . . . . Garrison Access . | . . . . . Terminal Hacks 9 | . 4 . 4 1 Record 1 | . . . 1 . Part Schematic 1 | . 1 . . . Prototype ID Bank 2 | . . . 2 . Terminal Index 1 | . . . . 1 Maintenance Status 1 | . 1 . . . Hauler Manifests 2 | . 1 . 1 . Zone Layout 1 | . 1 . . . Fabricator Hacks . | . . . . . Repair Station Hacks . | . . . . . Recycling Unit Hacks 1 | . 1 . . . Report Inventory 1 | . 1 . . . Scanalyzer . | . . . . . Garrison Access Hacks . | . . . . . Unauthorized Hacks . | . . . . . Terminals . | . . . . . Fabricators . | . . . . . Repair Stations . | . . . . . Recycling Units . | . . . . . Scanalyzers . | . . . . . Garrison Access . | . . . . . Data Cores Recovered 1 | . . . 1 . Used . | . . . . . Hacking Detections 7 | . 4 . 2 1 Full Trace Events . | . . . . . Feedback Events . | . . . . . Feedback Blocked . | . . . . . Robot Schematics Acquired . | . . . . . Robots Built . | . . . . . Matter . | . . . . . Time . | . . . . . Total Robot Build Rating . | . . . . . Part Schematics Acquired 1 | . 1 . . . Parts Built . | . . . . . Matter . | . . . . . Time . | . . . . . Total Part Build Rating . | . . . . . Parts Repaired . | . . . . . Time . | . . . . . Parts Recycled . | . . . . . Recycled Matter . | . . . . . Retrieved Matter . | . . . . . Retrieved Components . | . . . . . Parts Scanalyzed . | . . . . . Part Schematics Acquired . | . . . . . Parts Damaged . | . . . . . Bothacking | -11 -10 -10 -9 -8 ------------ Run | Scr Mat Min Mat Mat Used RIF Installer . | . . . . . Robots Hacked . | . . . . . Non-combat . | . . . . . Combat . | . . . . . Robot Hacks Applied . | . . . . . Relay Couplers Released . | . . . . . Robots Rewired . | . . . . . Allies Hacked . | . . . . . Hacks Repelled . | . . . . . Allies | -11 -10 -10 -9 -8 -------- Run | Scr Mat Min Mat Mat Total Allies . | . . . . . Largest Group . | . . . . . Highest-Rated Group . | . . . . . Highest-Rated Ally . | . . . . . Total Orders . | . . . . . Ally Attacks . | . . . . . Total Damage . | . . . . . Kills . | . . . . . Allies Corrupted . | . . . . . Allies Melted . | . . . . . Intel | -11 -10 -10 -9 -8 ------- Run | Scr Mat Min Mat Mat Robot Analysis Total . | . . . . . Derelict Logs Recovered . | . . . . . Drone Launches . | . . . . . Drone Recoveries . | . . . . . Exploration | -11 -10 -10 -9 -8 ------------- Run | Scr Mat Min Mat Mat Turns Passed 1341 | 46 529 55 653 58 Spaces Moved 1630 | 51 677 148 687 67 Core 117 | 51 61 . 5 . Treads . | . . . . . Legs . | . . . . . Wheels 222 | . . . 222 . Hover 355 | . 281 . 7 67 Flight 936 | . 335 148 453 . Fastest Speed 34 | 50 37 37 34 60 Average Speed 53 | 81 51 37 56 64 Slowest Speed 200 | 100 100 37 200 65 Overloaded Moves . | . . . . . Propulsion Burnouts . | . . . . . Robots Hopped 4 | . 1 . 3 . Cave-ins Triggered . | . . . . . Exploration Rate (%) 40 | 4 87 50 51 10 Regions Visited 4 Branch Regions 1 Pre-discovered Areas . | . . . . . Known Exits Taken . | . . . . . Unknown Exits Taken 4 | 1 1 1 1 . Scrap Searched 3 | . . 3 . . Spaces Dug . | . . . . . Terrain Destroyed . | . . . . . Melee . | . . . . . Projectile . | . . . . . AOE . | . . . . . Terrain Rammed . | . . . . . Walls Destroyed . | . . . . . Machines Disabled . | . . . . . Actions | -11 -10 -10 -9 -8 --------- Run | Scr Mat Min Mat Mat Total 1944 | 54 784 147 880 79 Wait 136 | 1 28 . 107 . Move 1618 | 50 674 147 680 67 Hop 4 | . 1 . 3 . Pick Up 5 | . 1 . 4 . Fast Attach 33 | 3 15 . 15 . Attach 6 | . . . 4 2 Detach 9 | . 2 . 7 . Swap 5 | . . . 5 . Drop 9 | . . . 9 . Fire 103 | . 54 . 46 3 Melee . | . . . . . Ram 16 | . 9 . . 7 Kick . | . . . . . Crush . | . . . . . Escape Stasis . | . . . . . Rewire . | . . . . . Trap . | . . . . . Miscellaneous . | . . . . . Route ------- -11/Scrapyard -10/Materials (discovered 3 exits: *Mat x2 / [*Min]) -10/Mines -9/Materials -8/Materials History --------- Turn | Location | Event 4 | -11/Scrapyard | Discovered new exit (range 16) 47 | -11/Scrapyard | Entered Materials 171 | -10/Materials | Core integrity fell below 50% 251 | -10/Materials | Discovered new exit (range 13) 302 | -10/Materials | Build established: Mutant 436 | -10/Materials | Lost 3 parts (1p1n1w) 459 | -10/Materials | Central database locked down 477 | -10/Materials | Core integrity fell below 20% 501 | -10/Materials | Discovered new exit (range 13) 512 | -10/Materials | Discovered new exit (range 14) 576 | -10/Materials | Entered Mines 628 | -10/Mines | Discovered new exit (range 10) 631 | -10/Mines | Entered Materials 631 | -9/Materials | Evolved 2 slots: Propulsion x1, Utility x1 1051 | -9/Materials | Lost 4 parts (1p3n) 1233 | -9/Materials | Core integrity fell below 50% 1253 | -9/Materials | Lost 4 parts (1p1u2w) 1265 | -9/Materials | Discovered new exit (range 13) 1284 | -9/Materials | Entered another Materials area 1284 | -8/Materials | Evolved 2 slots: Utility x2 1342 | -8/Materials | Self-destructed Last Messages --------------- Found 12 terminals. Downloaded coordinate data. 01307_ C-30 ARC bursts open, deploying its payload. 01307_ G-50 Soldier unfolds itself. 01307_ G-47 Trooper unfolds itself. 01308_ K-01 Serf collects debris. 01308_ O-16 Technician: "IFF HANDSHAKE FAILED. SECURING TERMINAL." 01311_ ALERT: Hostiles spotted, dispatching reinforcements to Terminal M011. 01313_ K-01 Serf collects debris. 01321_ Slammed into S-10 Pest. 01328_ Destabilizing: Core damaged (-27). 01329_ Slammed into S-10 Pest. 01332_ S-10 Pest destroyed. 01333_ Acquired 20 matter. 01333_ K-01 Serf collects debris. 01336_ Wheel destroyed. 01338_ K-01 Serf cleans the Repair Station. 01340_ Minigun destroyed. 01341_ K-01 Serf cleans the Repair Station. Map ----- +----------------------------------------------------+ | ?????????????????????????????????????????????????? | | ?????????????????????????????????????????????????? | | ?????????????????????????????????????????????????? | | ?????????????????????????????????????????????????? | | ?????????????????????????????????????????????????? | | ?????????????????????????????????????????????????? | | ?????????????????????????????????????????????????? | | ?????????????????????????????????????????????????? | | ?????????????????????????????????????????????????? | | ?????????????????????????????????????????????????? | | ?????????????????????????????????????????????????? | | ?????????????????????????????????????????????????? | | ?????????????????????????????????????????????????? | | ?????????????????????????????????????????????????? | | ?????????????????????????????????????????????????? | | ?????????????????????????????????????????????????? | | ?????????????????????????????????????????????????? | | ?????????????????????????????????????????????????? | | ???????????????#?????????????????????????????????? | | ???????????????# ????????????????????????????????? | | ???????????????# ???????????????????????????????? | | ???????????????#g ??????????????????????????????? | | ???????????????+ ###########???????????????????? | | ???????????????# ##T###?????????????????? | | ???????????????# ##????????????????? | | ???????????????# @ "#????????????????? | | ???????????????#####"""ks""" T#????????????????? | | ???????????????????#"R s""" "#????????????????? | | ???????????????????#"""os""" ##????????????????? | | ???????????????????# t #??????????#######? | | ???????????????????# ###????????# ## | | ???????????????????# g # ????????# ? | | ???????????????????#= # ????? #?? ? | | ???????????????????# ### ##T# # """ #?? ?? | | ???????????????????# ??# ####=# """ #?? ?? | | ???????????????????# ??# #??# # #??# #?? | | ???????????????????# ??# #??# # """ #??# #?? | | ???????????????????# ?###/####/# """ #??# #?? | | ???????????????????+ ?# # """ ????# +?? | | ???????????????????# ?# # ??????# #?? | | ???????????????????# ?# ###+##??????# #?? | | ???????????????????#??# [ # ######## #?? | | ??????????????????????+ + "%" #?? | | ??????????????????????# # " ### | | ??????????????????????# # ######## # | | ??????????????????????# ## ##??????# + | | ??????????????????????# ## #???????# # | | ??????????????????????####+###### #???????# # | | ????????????????????????????????# #???????# # | | ????????????????????????????????# #???????##### | +----------------------------------------------------+ Best States ------------- Heat Dissipation 31 Energy Generation 14 Energy Capacity 140 Matter Stores 300 Matter Capacity 300 Sight Range 16 Terrain Scan Range 14 Terrain Scan Density 60 ECM Strength 1 Armor Coverage 150 Evasion (%) 63 Targeting Accuracy 24 Item Schematics ----------------- Beam Cannon | -10/Materials | Hacked Robot Schematics ------------------ None Fabricated ------------ Nothing Alien Tech Used ----------------- None Achievements -------------- None Challenges ------------ None Game ------ Seed ActuatorSensorLaser Manual? 0 Play Time 00:40:48 Cumulative 80.0 hours Start 2020.10.09 @ 19:12:32 End 2020.10.09 @ 20:00:23 Sessions 1 Manual Loads 0 Difficulty Rogue Special Mode None Game No. 53 Rogue 53 Adventurer 0 Explorer 0 Win Type - Total 1 Types 1/0/0/0/0/0/0/0/0 Lore% 24 Gallery% 47 Achievement% 34 Wizard Run 0 Options --------- ASCII 0 Keyboard 1 Movement Numpad Keybinds 0 Fullscreen 1 Font 36/Smallcaps Map View 76x50 Tactical HUD 1 Map Filters NONE Filters NONE Steam 1 RUN: c284d192-9d8d-4ae4-a776-880d3c2f3433